[Event "24th Torredembarra Open 2024"]
[Site "Torredembarra"]
[Date "2024.07.07"]
[Round "9.1"]
[White "Travesset Sagre, Jan"]
[Black "Guasch Figuerola, Agusti"]
[Result "1-0"]
[ECO "B06"]
[WhiteElo "2264"]
[BlackElo "1991"]
[Annotator "TA"]
[PlyCount "91"]
[EventDate "2024.06.28"]
[EventType "swiss"]
[EventCountry "ESP"]
[SourceTitle "playchess.com"]
[Source "ChessBase"]
[SourceQuality "1"]
[TimeControl "5400+30"]

{[%evp 14,91,49,45,53,48,46,56,44,42,47,62,58,43,34,47,54,45,51,34,26,32,45,43,41,50,57,48,55,57,67,39,66,63,95,79,122,104,158,154,197,151,200,206,220,199,221,205,260,201,179,161,153,83,104,98,157,173,347,339,283,140,160,92,177,92,94,98,109,109,174,171,395,395,381,372,1882,1738,29997,29998]} 1. d4 {[%emt 0:01:26]} g6 {[%emt 0:00:05]} 2. Nf3 {[%emt 0:04:25]} Bg7 {[%emt 0:00:13]} 3. e4 {[%emt 0:00:20]} d6 {[%emt 0:00:12]} 4. Bc4 {[%emt 0:00:11]} Nf6 {[%emt 0:00:19]} 5. Qe2 {[%emt 0:02:14]} O-O {[%emt 0:01:14]} 6. O-O {[%emt 0:00:57]} c6 {[%emt 0:03:47]} 7. Bb3 {[%emt 0:11:23]} Bg4 {[%emt 0:15:26]} 8. Nbd2 {[%emt 0:03:12]} Nbd7 {[%emt 0:02:08]} 9. h3 {[%emt 0:17:26]} Bxf3 {[%emt 0:00:13]} 10. Nxf3 {[%emt 0:00:07]} e5 {[%emt 0:00:37] Weiß steht etwas besser.} 11. dxe5 {[%emt 0:02:03]} dxe5 {[%emt 0:01:37]} 12. c3 {[%emt 0:02:29]} Qe7 {[%emt 0:03:27]} 13. g3 {[%emt 0:09:15]} a5 {[%emt 0:07:21]} 14. a4 {[%emt 0:01:14]} Nc5 {[%emt 0:01:28]} 15. Bc2 {[%emt 0:00:02]} Rfd8 {[%emt 0:02:51]} 16. b3 {[%emt 0:41:46]} Qc7 {[%emt 0:03:33]} 17. Qc4 {[%emt 0:00:00]} Ne6 {[%emt 0:08:25][%cal Ob7b5]} 18. Be3 {[%emt 0:00:00]} Rd7 {[%emt 0:00:48]} 19. Rfd1 {[%emt 0:00:00]} Rad8 {[%emt 0:00:53]} 20. Rxd7 {[%emt 0:00:00]} Rxd7 {[%emt 0:00:24]} 21. Kg2 {[%emt 0:00:00]} h6 {[%emt 0:45:59]} 22. Rd1 {[%emt 0:00:00]} Bf8 {[%emt 0:00:00]} 23. Rb1 {[%emt 0:00:00]} Rd8 {[%emt 0:00:00]} 24. b4 {[%emt 0:00:00]} axb4 {[%emt 0:00:00]} 25. cxb4 {[%emt 0:00:00]} Nd7 {[%emt 0:00:00]} (25... c5 $142) 26. a5 $16 {[%emt 0:00:00]} Qd6 {[%emt 0:00:00]} 27. Bb3 {[%emt 0:00:00]} (27. b5 $18) 27... Bg7 {[%emt 0:00:00]} (27... Ra8 $16 {ist wohl besser.} 28. Rd1 Qe7) 28. Rd1 $18 {[%emt 0:00:00]} Qe7 {[%emt 0:00:00]} 29. b5 {[%emt 0:00:00]} cxb5 {[%emt 0:00:00]} 30. Qxb5 {[%emt 0:00:00]} Nd4 {[%emt 0:00:00]} 31. Bxd4 {[%emt 0:00:00]} (31. Qxb7 Rb8 32. Qc7 (32. Qd5 Nxb3 33. Qxd7 Qxd7 $14) 32... Rxb3 $16) 31... exd4 {[%emt 0:00:00]} 32. Bd5 {[%emt 0:00:00]} (32. Qxb7 Rb8 33. Qd5 Nf6) 32... Nc5 {[%emt 0:00:00]} 33. Nd2 {[%emt 0:00:00]} (33. Nxd4 $6 Nxe4 34. Nf3 (34. Qxb7 Qxb7 35. Bxb7 Nc5 $11) 34... Kf8 $14 (34... Nc3 35. Bxf7+ Kxf7 36. Qc4+ Kf8 37. Nh4 $14)) (33. Qc4 $142) 33... Rd7 {[%emt 0:00:00]} 34. Rc1 {[%emt 0:00:21]} Rc7 {[%emt 0:00:00]} (34... Ne6 $142) 35. Qb6 $16 {[%emt 0:00:01]} Kh7 $2 {[%emt 0:03:44]} (35... d3 36. Qxg6 Na6) 36. Nb3 $18 {[%emt 0:00:45]} Bf8 {[%emt 0:00:20]} 37. Nxd4 {[%emt 0:00:25]} (37. Rxc5 $18 {ist viel giftiger.} Rxc5 38. Nxc5 (38. Qxc5 Qxc5 39. Nxc5 Bxc5 $18) (38. Bxb7 Rc4 $11) 38... Qxc5 39. Qxb7 (39. Bxb7 Qxb6 40. axb6 Bc5 $16)) 37... Rd7 $16 {[%emt 0:00:10]} 38. Qb1 {[%emt 0:04:42] Weiß hat aktiveres Spiel.} ({Besser ist} 38. Qb5 {[%cal Oc1c5] Droht stark Rxc5!} Na6 39. Bxb7) 38... f5 {[%emt 0:00:42] [#]} 39. Re1 {[%emt 0:01:32]} ({Günstiger ist} 39. Qb5 $1 $18 {[%cal Oc1c5] Schwarz muss nun Rxc5! beachten.} Nxe4 40. Ne6) 39... fxe4 {[%emt 0:04:04]} 40. Bxe4 {[%emt 0:04:14]} Nxe4 {[%emt 0:00:00]} 41. Rxe4 {[%emt 0:00:00]} Qd6 {[%emt 0:00:00]} (41... Qb4 $16 {war nötig.} 42. Qxb4 Bxb4) 42. Ne6 $36 {[%emt 0:00:00][%mdl 2048] Weiss ist am Drücker.} Be7 $2 {[%emt 0:00:14]} (42... Bg7 {ist eine bessere Verteidigung.} 43. h4 Qc6) 43. Nf4 {[%emt 0:00:00] [#] Re6 ist eine echte Drohung.} Qc6 {[%emt 0:00:37]} 44. Kh2 {[%emt 0:00:13] Zielt auf Re6 ab.} Bg5 $2 {[%emt 0:00:22]} (44... Qc5 45. Re2 Qf5 46. Qxf5 gxf5) 45. Re6 {[%emt 0:00:23]} Qc5 {[%emt 0:00:57]} 46. Qxg6+ {[%emt 0:00:11] Gewichteter Fehlerwert: Weiß=0.20 (präzise) /Schwarz=0.45.  Fehler:       	Weiß=5     	Schwarz=8     Ungenau:       	Weiß=1     	Schwarz=4     OK:         	Weiß=15    	Schwarz=12    Bester:       	Weiß=4     	---} 1-0

[Event "24th Torredembarra Open 2024"]
[Site "Torredembarra"]
[Date "2024.07.07"]
[Round "9.2"]
[White "Lacasa Diaz, Josep Anton"]
[Black "Pogorelov, Ruslan"]
[Result "1-0"]
[ECO "A17"]
[WhiteElo "2329"]
[BlackElo "2273"]
[Annotator "TA"]
[PlyCount "155"]
[EventDate "2024.06.28"]
[EventType "swiss"]
[EventCountry "ESP"]
[SourceTitle "playchess.com"]
[Source "ChessBase"]
[SourceQuality "1"]
[TimeControl "5400+30"]

{[%evp 42,155,69,79,74,74,75,50,59,55,65,39,33,40,62,53,75,48,75,75,75,19,75,17,17,17,17,14,17,8,14,-8,-8,-13,0,0,0,0,0,0,13,0,0,0,0,0,30,30,44,44,95,50,50,50,954,867,733,683,1307,1292,1222,1097,928,325,565,303,783,13,13,13,13,13,13,13,13,13,13,13,13,13,29970,29971,29969,29970,29975,0,13,0,29973,29974,29978,29979,29979,29978,29977,29977,29977,29978,29980,29981,29980,29977,29982,29981,29981,29982,29982,29983,29983,29984,29985,29986,29987,29986,29986,29987]} 1. Nf3 {[%emt 0:00:30]} Nf6 {[%emt 1:31:00]} 2. c4 {[%emt 0:00:17]} e6 {[%emt 0:00:30]} 3. Nc3 {[%emt 1:31:13]} Bb4 {[%emt 0:00:00]} 4. Qc2 {[%emt 0:00:00]} O-O {[%emt 0:00:00]} 5. a3 {[%emt 0:00:00]} Bxc3 {[%emt 0:00:00]} 6. Qxc3 {[%emt 0:00:00]} b6 {[%emt 0:02:00]} 7. b4 {[%emt 0:02:00]} Bb7 {[%emt 0:00:30]} 8. Bb2 {[%emt 0:00:30]} d6 {[%emt 0:00:30]} 9. e3 {[%emt 0:00:00]} Nbd7 {[%emt 0:00:00]} 10. Be2 {[%emt 0:00:00]} Qe7 {[%emt 0:01:00]} 11. O-O {[%emt 0:01:30] A17: English Opening: 1...Nf6 with ...Bb4.} a5 {[%emt 0:00:30]} 12. d3 {[%emt 0:00:30]} axb4 {[%emt 0:00:00]} 13. axb4 {[%emt 0:00:30]} Rxa1 {[%emt 0:00:00]} 14. Rxa1 {[%emt 0:00:00]} Ra8 {[%emt 0:01:30]} 15. Rxa8+ {[%emt 0:00:00]} Bxa8 {[%emt 0:00:30]} 16. Qa3 {[%emt 0:00:00]} Qd8 {[%emt 0:00:00]} 17. Qa7 {[%emt 0:02:00]} Qb8 {[%emt 0:01:00]} 18. Qxb8+ {[%emt 0:00:00]} Nxb8 {[%emt 0:00:30]} 19. Nd2 $146 {[%emt 0:01:00]} ({Predecessor:} 19. Nd4 Kf8 20. Nb3 Ke7 21. f4 Na6 22. b5 Nc5 23. Nxc5 bxc5 24. Kf2 g6 25. Bf3 Bxf3 26. Bxf6+ Kxf6 27. Kxf3 {1-0 Genser,H (2216)-Schneider Zinner,H (2285) AUT-ch Frohnleiten 2000 (3.22)}) 19... Nbd7 {[%emt 0:00:30]} 20. f4 {[%emt 0:00:30]} e5 {[%emt 0:00:30]} 21. g4 {[%emt 0:00:30]} h6 {[%emt 0:00:30]} 22. Kf2 {[%emt 0:00:30]} Kf8 {[%emt 0:00:00]} 23. h4 {[%emt 0:00:00]} Ke7 {[%emt 0:01:00]} 24. g5 {[%emt 0:01:00]} hxg5 {[%emt 0:00:00]} 25. hxg5 {[%emt 0:00:00]} Ne8 {[%emt 0:01:00]} 26. f5 {[%emt 0:00:00]} f6 {[%emt 0:00:30]} 27. g6 {[%emt 0:01:30]} c6 {[%emt 0:00:30]} 28. Bf3 {[%emt 0:00:00]} Nc7 {[%emt 0:00:30]} 29. Nb3 {[%emt 0:01:00]} c5 {[%emt 0:00:00]} 30. Bxa8 {[%emt 0:00:00]} Nxa8 {[%emt 0:01:00]} 31. Ba3 {[%emt 0:01:00]} ({Better is} 31. b5 $1 $16) 31... Nc7 {[%emt 0:00:30]} (31... cxb4 $1 $11 {keeps the balance.} 32. Bxb4 Nc7) 32. Kf3 {[%emt 0:00:30]} (32. b5 $1 $16) 32... cxb4 $1 $11 {[%emt 0:00:00]} 33. Bxb4 {[%emt 0:00:30]} Nb8 {[%emt 0:01:00]} 34. Ke4 {[%emt 0:00:30]} Nc6 {[%emt 0:00:00]} 35. Ba3 {[%emt 0:00:30]} b5 {[%emt 0:01:00]} 36. cxb5 {[%emt 0:00:00]} Nxb5 {[%emt 0:00:30]} 37. Kd5 {[%emt 0:01:00]} Kd7 {[%emt 0:00:00]} 38. Bb2 {[%emt 0:00:00]} Nc7+ {[%emt 0:00:00]} 39. Kc4 {[%emt 0:00:00]} Ne7 {[%emt 0:00:44]} 40. e4 {[%emt 0:00:00]} Kc6 {[%emt 0:01:16]} 41. Bc1 {[%emt 0:00:00]} d5+ {[%emt 0:00:00]} 42. Kb4 {[%emt 0:00:00]} Kb6 {[%emt 0:00:29]} 43. Be3+ {[%emt 0:00:00]} d4 {[%emt 0:00:17]} 44. Bd2 {[%emt 0:00:00]} Kc6 {[%emt 0:00:15]} 45. Na5+ {[%emt 0:00:00]} Kb6 {[%emt 0:01:29]} (45... Kd7 $14) 46. Nc4+ {[%emt 0:00:00]} Kc6 {[%emt 0:00:00]} 47. Ka5 {[%emt 0:00:00]} Nc8 $2 {[%emt 0:01:00][%mdl 8192]} (47... Ncd5 $14) 48. Bb4 $18 {[%emt 0:00:00]} Ne8 {[%emt 0:00:00]} 49. Bf8 {[%emt 0:00:22]} Na7 {[%emt 0:01:00]} 50. Ka6 {[%emt 0:00:31]} Nc8 {[%emt 0:00:00]} 51. Na5+ {[%emt 0:00:20]} Kc7 {[%emt 0:00:00]} 52. Kb5 $2 {[%emt 0:00:26]} (52. Nb7) 52... Ncd6+ $2 {[%emt 0:01:30]} (52... Nb6 53. Ba3 Nc8) 53. Kc5 $18 {[%emt 0:00:06]} Kd7 $2 {[%emt 0:00:00]} (53... Nc8 54. Kd5 Kd7) 54. Nc4 $2 {[%emt 0:00:22]} ({White should play} 54. Nb3 $18 Nc8 55. Kb4) 54... Nxc4 $11 {[%emt 0:00:00]} 55. Kxc4 {[%emt 0:00:08]} Kc6 {[%emt 0:01:30]} 56. Be7 {[%emt 0:00:59]} (56. Ba3 $5 Nd6+ $8 57. Kb3 $14) 56... Kd7 {[%emt 0:00:00]} 57. Ba3 {[%emt 0:00:06]} (57. Bb4 $5 Nd6+ $8 58. Kb3 $11) 57... Kc6 {[%emt 0:00:00]} 58. Bf8 {[%emt 0:00:05]} (58. Bb4 $5 Nd6+ $8 59. Kb3 $14) 58... Nd6+ {[%emt 0:00:00]} 59. Kb4 {[%emt 0:00:56]} Ne8 {[%emt 0:02:00]} 60. Ka5 {[%emt 0:00:41]} Kb7 $2 {[%emt 0:00:00][%mdl 8192]} (60... Kc7 $11 61. Kb5 Kb7) 61. Kb5 {[%emt 0:00:17]} Kc7 {[%emt 0:00:00]} 62. Kc5 {[%emt 0:00:13]} Kd7 {[%emt 0:01:30] [#]} 63. Kb5 $2 {[%emt 0:01:24]} (63. Kb6 $1 {mates} Kc8 64. Kc6 Kd8 65. Bb4 Nc7 66. Bd6 (66. Ba5 Kc8 $18) 66... Kc8 67. Bf8 Na6 68. Bxg7) 63... Kc7 $1 $11 {[%emt 0:00:00]} 64. Kc5 $2 {[%emt 0:00:04][%mdl 8192]} (64. Bb4 $11 Nd6+ 65. Kc5) 64... Kd7 {[%emt 0:00:00] [#]} 65. Kb6 $1 {[%emt 0:07:00]} Kc8 {[%emt 0:00:54]} 66. Kc6 {[%emt 0:00:00]} Kd8 {[%emt 0:01:06]} 67. Bc5 {[%emt 0:00:00]} Nc7 {[%emt 0:00:00]} 68. Bb6 {[%emt 0:00:00]} Kc8 {[%emt 0:00:00]} 69. Kd6 {[%emt 0:00:00]} Na6 {[%emt 0:01:30]} 70. Ba5 {[%emt 0:00:00]} Kb7 {[%emt 0:00:00]} 71. Kd5 {[%emt 0:03:00]} Kc8 {[%emt 0:00:00]} 72. Kc6 {[%emt 0:00:00]} Nc7 {[%emt 0:00:48]} 73. Kd6 {[%emt 0:00:00]} Na6 {[%emt 0:00:09]} 74. Ke7 {[%emt 0:00:00]} Nc5 {[%emt 0:00:11]} 75. Kf7 {[%emt 0:00:00]} Nxd3 {[%emt 0:00:17]} 76. Kxg7 {[%emt 0:00:00]} Nf4 {[%emt 0:00:39]} 77. Kf7 {[%emt 0:00:00]} Nh5 {[%emt 0:00:14]} 78. g7 {[%emt 0:00:00]} 1-0

[Event "24th Torredembarra Open 2024"]
[Site "Torredembarra"]
[Date "2024.07.07"]
[Round "9.3"]
[White "Bernado Lopez, Roger"]
[Black "Jimenez Munoz, Nicolas"]
[Result "1/2-1/2"]
[ECO "B53"]
[WhiteElo "2155"]
[BlackElo "2070"]
[Annotator "RC"]
[PlyCount "62"]
[EventDate "2024.06.28"]
[EventType "swiss"]
[EventCountry "ESP"]
[SourceTitle "playchess.com"]
[Source "ChessBase"]
[SourceQuality "1"]
[TimeControl "5400+30"]

1. e4 {[%emt 0:00:07]} c5 {[%emt 1:31:00]} 2. Nf3 {[%emt 0:00:18]} d6 {[%emt 0:00:30]} 3. d4 {[%emt 0:00:18]} Nf6 {[%emt 0:00:30]} 4. Bb5+ {[%emt 1:31:47]} Bd7 {[%emt 0:00:30]} 5. Bxd7+ {[%emt 0:00:30]} Qxd7 {[%emt 0:00:30]} 6. dxc5 {[%emt 0:00:30]} Nxe4 {[%emt 0:00:00]} 7. cxd6 {[%emt 0:00:30]} Nxd6 {[%emt 0:01:00]} 8. O-O {[%emt 0:00:30]} Nc6 {[%emt 0:00:30]} 9. Nc3 {[%emt 0:00:30]} g6 {[%emt 0:00:30]} 10. Bf4 {[%emt 0:00:30]} Bg7 {[%emt 0:00:30]} 11. Bxd6 {[%emt 0:00:30]} Qxd6 {[%emt 0:00:30]} 12. Qxd6 {[%emt 0:00:00]} exd6 {[%emt 0:00:30]} 13. Nd5 {[%emt 0:01:00]} O-O {[%emt 0:00:30]} 14. c3 {[%emt 0:00:30]} Rad8 {[%emt 0:00:30]} 15. Rfe1 {[%emt 0:00:30]} Rfe8 {[%emt 0:00:30]} 16. Rad1 {[%emt 0:00:30]} Ne5 {[%emt 0:00:30]} 17. Nxe5 {[%emt 0:00:30]} dxe5 {[%emt 0:00:30]} 18. g4 {[%emt 0:00:30]} f6 {[%emt 0:00:30]} 19. Kg2 {[%emt 0:00:00]} Kf7 {[%emt 0:00:00]} 20. h4 {[%emt 0:01:00]} Rd7 {[%emt 0:01:00]} 21. c4 {[%emt 0:00:30]} f5 {[%emt 0:00:00]} 22. gxf5 {[%emt 0:00:00]} gxf5 {[%emt 0:00:00]} 23. b3 {[%emt 0:01:00]} Bh6 {[%emt 0:01:30]} 24. f3 {[%emt 0:00:30]} Rd6 {[%emt 0:00:30]} 25. a4 {[%emt 0:00:30]} Rg6+ {[%emt 0:00:00]} 26. Kf2 {[%emt 0:00:30]} Reg8 {[%emt 0:00:00]} 27. Rg1 {[%emt 0:00:30]} Rxg1 {[%emt 0:00:00]} 28. Rxg1 {[%emt 0:00:00]} Rxg1 {[%emt 0:00:00]} 29. Kxg1 {[%emt 0:01:00]} Ke6 {[%emt 0:00:00]} 30. Kf2 {[%emt 0:00:30]} e4 {[%emt 0:03:00]} 31. f4 {[%emt 0:00:30]} Bf8 {[%emt 0:00:30]} 1/2-1/2

[Event "24th Torredembarra Open 2024"]
[Site "Torredembarra"]
[Date "2024.07.07"]
[Round "9.4"]
[White "Cuadras Avellana, Jordi"]
[Black "Mateos Rozas, Miguel Angel"]
[Result "1-0"]
[ECO "B30"]
[WhiteElo "2172"]
[BlackElo "2225"]
[Annotator "RC"]
[PlyCount "119"]
[EventDate "2024.06.28"]
[EventType "swiss"]
[EventCountry "ESP"]
[SourceTitle "playchess.com"]
[Source "ChessBase"]
[SourceQuality "1"]
[TimeControl "5400+30"]

1. e4 {[%emt 0:00:20]} c5 {[%emt 0:01:12]} 2. Nf3 {[%emt 0:00:08]} Nc6 {[%emt 1:30:18]} 3. Bb5 {[%emt 0:00:21]} e6 {[%emt 0:00:30]} 4. O-O {[%emt 1:31:41]} Nge7 {[%emt 0:00:30]} 5. Re1 {[%emt 0:00:30]} a6 {[%emt 0:00:30]} 6. Bf1 {[%emt 0:00:00]} d5 {[%emt 0:00:30]} 7. exd5 {[%emt 0:01:00]} Nxd5 {[%emt 0:00:30]} 8. d4 {[%emt 0:00:30]} Be7 {[%emt 0:00:30]} 9. c3 {[%emt 0:00:30]} O-O {[%emt 0:00:30]} 10. Nbd2 {[%emt 0:00:30]} cxd4 {[%emt 0:00:30]} 11. cxd4 {[%emt 0:00:30]} Nf6 {[%emt 0:00:30]} 12. Nb3 {[%emt 0:00:30]} b6 {[%emt 0:00:30]} 13. Bg5 {[%emt 0:00:30]} Bb7 {[%emt 0:00:30]} 14. Rc1 {[%emt 0:00:30]} Rc8 {[%emt 0:00:30]} 15. a3 {[%emt 0:00:30]} Qd5 {[%emt 0:00:30]} 16. Bc4 {[%emt 0:00:30]} Qf5 {[%emt 0:00:00]} 17. Qe2 {[%emt 0:00:30]} Na5 {[%emt 0:01:00]} 18. Nxa5 {[%emt 0:00:30]} Bxf3 {[%emt 0:00:30]} 19. Qxf3 {[%emt 0:00:30]} Qxg5 {[%emt 0:00:30]} 20. Nc6 {[%emt 0:00:00]} Bd6 {[%emt 0:00:30]} 21. Bxa6 {[%emt 0:00:00]} Rc7 {[%emt 0:00:00]} 22. Rcd1 {[%emt 0:01:30]} Nd5 {[%emt 0:01:00]} 23. Ne5 {[%emt 0:00:30]} Rc2 {[%emt 0:00:00]} 24. Bd3 {[%emt 0:00:30]} Rd2 {[%emt 0:01:00]} 25. Rxd2 {[%emt 0:00:30]} Qxd2 {[%emt 0:00:30]} 26. Qe2 {[%emt 0:00:30]} Qh6 {[%emt 0:00:30]} 27. g3 {[%emt 0:00:30]} Rd8 {[%emt 0:00:30]} 28. Bc4 {[%emt 0:00:30]} Ne7 {[%emt 0:00:30]} 29. Nf3 {[%emt 0:00:00]} Qf6 {[%emt 0:00:00]} 30. Bd3 {[%emt 0:01:00]} g6 {[%emt 0:00:00]} 31. Be4 {[%emt 0:00:30]} Nf5 {[%emt 0:01:30]} 32. Bxf5 {[%emt 0:00:00]} Qxf5 {[%emt 0:00:30]} 33. Ne5 {[%emt 0:00:00]} Bf8 {[%emt 0:00:30]} 34. Nf3 {[%emt 0:01:30]} Bg7 {[%emt 0:00:00]} 35. Qe4 {[%emt 0:00:30]} Qb5 {[%emt 0:00:00]} 36. b4 {[%emt 0:00:30]} Qc4 {[%emt 0:00:00]} 37. Rd1 {[%emt 0:00:00]} Rd5 {[%emt 0:00:00]} 38. Qe3 {[%emt 0:01:00]} Qc7 {[%emt 0:00:00]} 39. Rc1 {[%emt 0:00:00]} Qd8 {[%emt 0:03:00]} 40. Rc4 {[%emt 0:01:00]} Bf6 {[%emt 0:00:30]} 41. Qc1 {[%emt 0:00:00]} Kg7 {[%emt 0:00:00]} 42. Rc8 {[%emt 0:00:00]} Qd7 {[%emt 0:00:00]} 43. Rc7 {[%emt 0:00:00]} Qd8 {[%emt 0:01:30]} 44. Qc6 {[%emt 0:00:00]} Rd6 {[%emt 0:00:00]} 45. Qb7 {[%emt 0:02:30]} Qe8 {[%emt 0:00:00]} 46. Ne5 {[%emt 0:00:00]} Bxe5 47. dxe5 Rd3 {[%emt 0:02:00]} 48. Re7 {[%emt 0:01:30]} Qf8 {[%emt 0:00:30]} 49. Rxe6 {[%emt 0:00:00]} Rxa3 {[%emt 0:00:00]} 50. Re7 {[%emt 0:01:00]} Rf3 {[%emt 0:01:00]} 51. e6 {[%emt 0:00:30]} Rf6 {[%emt 0:00:30]} 52. Rxf7+ {[%emt 0:00:30]} Rxf7 {[%emt 0:00:30]} 53. Qxf7+ {[%emt 0:00:00]} Qxf7 {[%emt 0:00:00]} 54. exf7 {[%emt 0:00:00]} Kxf7 {[%emt 0:00:00]} 55. Kf1 {[%emt 0:01:30]} Ke6 {[%emt 0:00:00]} 56. Ke2 {[%emt 0:00:30]} Ke5 {[%emt 0:00:00]} 57. Kd3 {[%emt 0:00:00]} b5 {[%emt 0:00:00]} 58. f4+ {[%emt 0:00:00]} Kd5 {[%emt 0:00:00]} 59. g4 {[%emt 0:01:30]} h6 {[%emt 0:03:30]} 60. h3 {[%emt 0:00:30]} 1-0

[Event "24th Torredembarra Open 2024"]
[Site "Torredembarra"]
[Date "2024.07.07"]
[Round "9.5"]
[White "Castillo Dalmau, Albert"]
[Black "Torrecillas Martinez, Antonio"]
[Result "1/2-1/2"]
[ECO "A39"]
[WhiteElo "2330"]
[BlackElo "2287"]
[Annotator "TA"]
[PlyCount "102"]
[EventDate "2024.06.28"]
[EventType "swiss"]
[EventCountry "ESP"]
[SourceTitle "playchess.com"]
[Source "ChessBase"]
[SourceQuality "1"]
[TimeControl "5400+30"]

{[%evp 26,102,18,10,34,17,10,0,0,0,0,0,0,0,14,-106,0,0,0,0,26,30,34,9,16,20,27,9,14,0,6,0,0,-68,0,-8,0,45,41,1,75,-25,0,-98,-21,-18,-15,-16,-23,-28,-25,-24,0,0,0,0,0,0,9,8,39,25,52,33,39,36,61,61,71,53,62,59,60,58,65,61,53,8,8]} 1. c4 {[%emt 0:07:37]} Nf6 {[%emt 1:31:00]} 2. g3 {[%emt 1:23:53]} g6 {[%emt 0:00:30]} 3. Bg2 {[%emt 0:00:30]} Bg7 {[%emt 0:00:30]} 4. Nc3 {[%emt 0:00:30]} c5 {[%emt 0:00:30]} 5. Nf3 {[%emt 0:00:30]} Nc6 {[%emt 0:00:30]} 6. d4 {[%emt 0:00:30]} cxd4 {[%emt 0:00:30]} 7. Nxd4 {[%emt 0:00:30]} O-O {[%emt 0:00:00]} 8. O-O {[%emt 0:00:30]} Ng4 {[%emt 0:01:00][%cal Bf6g4,Bg4h6,Bh6f5][%mdl 32]} 9. e3 {[%emt 0:00:30]} d6 {[%emt 0:00:30]} 10. b3 {[%emt 0:00:30]} Nxd4 {[%emt 0:00:30]} 11. exd4 {[%emt 0:00:30]} Nh6 {[%emt 0:00:30]} 12. Bb2 {[%emt 0:00:30]} Nf5 {[%emt 0:00:30]} 13. Ne2 {[%emt 0:00:30]} Rb8 {[%emt 0:00:30]} 14. Qc2 {[%emt 0:00:30]} b6 {[%emt 0:00:30]} 15. a4 {[%emt 0:00:30]} e6 {[%emt 0:00:30][%cal Be7e6,Be6e5][%mdl 32]} 16. d5 {[%emt 0:00:30]} e5 {[%emt 0:00:30]} 17. Qd2 {[%emt 0:00:30]} h5 {[%emt 0:00:30]} 18. f4 {[%emt 0:00:30]} Re8 {[%emt 0:00:30]} 19. Rae1 {[%emt 0:00:30]} Rb7 {[%emt 0:00:30]} 20. Kh1 {[%emt 0:00:30] [#]} (20. fxe5 $11 dxe5 21. Nc1) 20... Rbe7 {[%emt 0:00:30]} (20... exf4 $1 $17 {White must now prevent ...Bxb2.} 21. Bxg7 Nxg7 22. Nxf4 Rxe1 23. Qxe1 Re7) 21. fxe5 $11 {[%emt 0:00:30]} dxe5 {[%emt 0:00:30]} (21... Bxe5 {feels hotter.} 22. Nc3 Nxg3+ 23. hxg3 Bxg3 24. Ne4 Rxe4 25. Rxe4 Rxe4 26. Bxe4 Qh4+) 22. Ba3 {[%emt 0:00:30]} Nd6 {[%emt 0:00:30]} 23. Nc3 {[%emt 0:00:30]} Rd7 {[%emt 0:00:00]} 24. Nb5 Nxb5 {[%emt 0:01:00]} 25. axb5 {[%emt 0:01:00]} f5 {[%emt 0:00:30]} 26. Re2 {[%emt 0:00:30]} Kh7 {[%emt 0:00:30]} 27. Rd1 {[%emt 0:00:30]} e4 {[%emt 0:00:30]} 28. b4 {[%emt 0:00:30]} Bb7 {[%emt 0:00:30]} 29. d6 {[%emt 0:00:30]} ({White should try} 29. Bf1 $11) 29... h4 {[%emt 0:00:30]} (29... a6 $15) 30. Re3 {[%emt 0:00:30]} Be5 {[%emt 0:00:30]} (30... hxg3 $11 31. hxg3 a6) 31. c5 $14 {[%emt 0:00:00]} hxg3 {[%emt 0:00:30]} 32. hxg3 {[%emt 0:01:00] Bb2 is the strong threat.} (32. Rxg3 $5 Bxg3 33. hxg3 $11) 32... Qf6 {[%emt 0:00:30]} (32... Qg5 $11) 33. Rb1 {[%emt 0:00:30]} (33. Qe2 $16) 33... Rc8 {[%emt 0:00:30]} 34. c6 {[%emt 0:00:00] [#]} (34. Rf1 $11 {remains equal.} Bd4 35. c6 Bxe3 36. cxb7 (36. Qxe3 Bxc6 37. bxc6 Rxc6 $17) 36... Rxb7 (36... Bxd2 $2 37. bxc8=Q Qxd6 38. Bb2 $18) (36... Rc3 37. Qxc3 Qxc3 38. b8=Q $11) 37. Qxe3 Qxd6 38. g4) 34... Bxc6 $1 {[%emt 0:00:00]} 35. bxc6 $11 {[%emt 0:00:00]} Rxd6 {[%emt 0:01:00][%cal Bd7d6,Bd6c6,Bc6c2,Bc2c1][%mdl 32]} 36. Qa2 {[%emt 0:01:30] b5 would now be deadly.} (36. Qf2 {simplifies} Rdxc6 37. Bb2 Bxb2 38. Qxb2 Qxb2 39. Rxb2 Kg7 40. Rf2) 36... Rdxc6 {[%emt 0:00:30]} (36... Rcxc6 $2 {is the wrong capture.} 37. b5 Rc7 38. Bxd6 Bxd6 39. Qb3 $18) (36... Qg5 {is more complex.} 37. Rbe1 Rdxc6 38. Bb2 Qh6+) 37. Bb2 {[%emt 0:00:30]} Bxb2 {[%emt 0:00:30]} 38. Qxb2 {[%emt 0:00:30]} Qg5 {[%emt 0:00:30]} (38... Qxb2 {simplifies} 39. Rxb2 Kg7 40. Kg1 Rc1+) 39. Qa3 {[%emt 0:00:30]} R8c7 {[%emt 0:00:30]} 40. Rf1 {[%emt 0:00:30][%cal Og3g4]} Qh6+ {[%emt 0:00:30]} 41. Kg1 {[%emt 0:00:00][%cal Og3g4]} Rc2 {[%emt 0:00:30] [#]} 42. g4 $1 {[%emt 0:01:00]} fxg4 {[%emt 0:00:30][%cal Oa7a5]} (42... Ra2 $5 43. Qxa2 Qxe3+ 44. Qf2 Qxf2+ 45. Rxf2 a5 $11) 43. Qb3 {[%emt 0:00:00]} a5 44. bxa5 bxa5 {[%cal Oa5a4]} 45. Rxe4 {[%emt 0:01:30]} Rc1 {[%emt 0:01:30]} 46. Rxg4 {[%emt 0:00:30] White is more active.} Qh5 {[%emt 0:00:30]} 47. Qg3 {[%emt 0:00:00] Hoping for Rh4.} Qc5+ {[%emt 0:00:30]} 48. Kh2 {[%emt 0:01:00] Qh4+ would kill now.} Rxf1 {[%emt 0:00:30]} 49. Bxf1 {[%emt 0:00:30][%cal Og4c4] Threatens to win with Rc4!} Rf7 {[%emt 0:00:00]} 50. Bg2 Rf5 {[%emt 0:01:00]} 51. Rh4+ {[%emt 0:00:13]} (51. Rxg6 Rh5+ 52. Bh3 Qc2+ 53. Kh1 Qxg6 $19) 51... Rh5 {[%emt 0:00:30] Weighted Error Value: White=0.23 (precise) /Black=0.16 (very precise) .  Mistake:       	White=4     	Black=5      Inaccurate:     	White=2     	Black=3      OK:         	White=10    	Black=13     Best:        	White=4     	Black=3} 1/2-1/2